[Event "Titled Tuesday Blitz January 31 Early 2023"]
[White "Harsh Suresh"]
[Black "Llanos, Guillermo"]
[WhiteFideId "45018464"]
[BlackFideId "100358"]
[WhiteElo "2298"]
[BlackElo "2290"]
[Result "1-0"]
[Round "01"]
[TimeControl "180+2"]
[Date "2023.01.31"]
[WhiteClock "0:02:14"]
[BlackClock "0:00:30"]

1. e4 {[%clk 0:03:00]}  c5 {[%clk 0:02:52]} 2. Nc3 {[%clk 0:03:00]}  Nc6 {[%clk 0:02:51]} 3. Bb5 {[%clk 0:03:00]}  Nd4 {[%clk 0:02:48]} 4. Bc4 {[%clk 0:03:00]}  e6 {[%clk 0:02:47]} 5. Nf3 {[%clk 0:03:00]}  Nf6 {[%clk 0:02:41]} 6. O-O {[%clk 0:03:00]}  d5 {[%clk 0:02:40]} 7. exd5 {[%clk 0:03:01]}  exd5 {[%clk 0:02:40]} 8. Nxd5 {[%clk 0:03:02]}  Nxd5 {[%clk 0:02:37]} 9. Nxd4 {[%clk 0:03:02]}  cxd4 {[%clk 0:02:31]} 10. Qh5 {[%clk 0:03:02]}  Be6 {[%clk 0:02:04]} 11. Re1 {[%clk 0:03:02]}  Be7 {[%clk 0:00:49]} 12. Rxe6 {[%clk 0:03:00]}  Nc7 {[%clk 0:00:37]} 13. Re1 {[%clk 0:02:38]}  O-O {[%clk 0:00:36]} 14. d3 {[%clk 0:02:37]}  g6 {[%clk 0:00:34]} 15. Qf3 {[%clk 0:02:36]}  b5 {[%clk 0:00:30]} 16. Bb3 {[%clk 0:02:36]}  a5 {[%clk 0:00:30]} 17. Bh6 {[%clk 0:02:14]} 1-0


[Site "https://www.chess.com"]

[Event "Titled Tuesday Blitz January 31 Early 2023"]
[White "Yeritsyan, Hayk"]
[Black "Urazayev, Arystanbek"]
[WhiteFideId "13307320"]
[BlackFideId "13709810"]
[WhiteElo "2241"]
[BlackElo "2460"]
[Result "0-1"]
[Round "01"]
[TimeControl "180+2"]
[Date "2023.01.31"]
[WhiteClock "0:00:04"]
[BlackClock "0:00:09"]

1. d4 {[%clk 0:02:54]}  d5 {[%clk 0:02:58]} 2. Nf3 {[%clk 0:02:20]}  Nf6 {[%clk 0:02:58]} 3. e3 {[%clk 0:02:20]}  e6 {[%clk 0:02:56]} 4. Bd3 {[%clk 0:02:20]}  Be7 {[%clk 0:02:51]} 5. Ne5 {[%clk 0:02:19]}  c5 {[%clk 0:02:50]} 6. c3 {[%clk 0:02:19]}  Nc6 {[%clk 0:02:50]} 7. f4 {[%clk 0:02:19]}  Ne4 {[%clk 0:02:34]} 8. Nd2 {[%clk 0:02:16]}  Bh4+ {[%clk 0:02:21]} 9. g3 {[%clk 0:02:15]}  Nxd2 {[%clk 0:02:21]} 10. Bxd2 {[%clk 0:01:56]}  Be7 {[%clk 0:02:17]} 11. O-O {[%clk 0:01:51]}  Qb6 {[%clk 0:02:13]} 12. Rb1 {[%clk 0:01:24]}  Bd7 {[%clk 0:02:13]} 13. a3 {[%clk 0:01:17]}  Nxe5 {[%clk 0:02:05]} 14. fxe5 {[%clk 0:01:12]}  Bb5 {[%clk 0:02:05]} 15. Qe2 {[%clk 0:00:20]}  Bxd3 {[%clk 0:02:04]} 16. Qxd3 {[%clk 0:00:21]}  O-O {[%clk 0:02:05]} 17. Rf2 {[%clk 0:00:20]}  Rac8 {[%clk 0:02:01]} 18. Rbf1 {[%clk 0:00:20]}  g6 {[%clk 0:01:54]} 19. Bc1 {[%clk 0:00:18]}  Qc6 {[%clk 0:01:49]} 20. Qe2 {[%clk 0:00:18]}  b5 {[%clk 0:01:46]} 21. Qg4 {[%clk 0:00:18]}  a5 {[%clk 0:01:44]} 22. h4 {[%clk 0:00:18]}  h5 {[%clk 0:01:42]} 23. Qf4 {[%clk 0:00:18]}  Rc7 {[%clk 0:01:22]} 24. g4 {[%clk 0:00:18]}  hxg4 {[%clk 0:00:37]} 25. Qxg4 {[%clk 0:00:19]}  Kg7 {[%clk 0:00:21]} 26. h5 {[%clk 0:00:19]}  Qe8 {[%clk 0:00:18]} 27. Bd2 {[%clk 0:00:16]}  f5 {[%clk 0:00:12]} 28. exf6+ {[%clk 0:00:15]}  Rxf6 {[%clk 0:00:13]} 29. Rxf6 {[%clk 0:00:14]}  Bxf6 {[%clk 0:00:14]} 30. Qf4 {[%clk 0:00:11]}  Rf7 {[%clk 0:00:13]} 31. e4 {[%clk 0:00:11]}  Bxd4+ {[%clk 0:00:13]} 32. cxd4 {[%clk 0:00:11]}  Rxf4 {[%clk 0:00:13]} 33. Bxf4 {[%clk 0:00:11]}  gxh5 {[%clk 0:00:13]} 34. Be5+ {[%clk 0:00:12]}  Kh7 {[%clk 0:00:14]} 35. Rf2 {[%clk 0:00:11]}  cxd4 {[%clk 0:00:13]} 36. Rg2 {[%clk 0:00:11]}  dxe4 {[%clk 0:00:13]} 37. Rg7+ {[%clk 0:00:12]}  Kh6 {[%clk 0:00:14]} 38. Rg2 {[%clk 0:00:12]}  e3 {[%clk 0:00:12]} 39. Bxd4 {[%clk 0:00:12]}  Qc6 {[%clk 0:00:10]} 40. Bxe3+ {[%clk 0:00:12]}  Kh7 {[%clk 0:00:10]} 41. Rf2 {[%clk 0:00:11]}  Qe4 {[%clk 0:00:11]} 42. Bd2 {[%clk 0:00:10]}  e5 {[%clk 0:00:10]} 43. Bxa5 {[%clk 0:00:10]}  h4 {[%clk 0:00:10]} 44. Bc3 {[%clk 0:00:11]}  h3 {[%clk 0:00:10]} 45. Kh2 {[%clk 0:00:10]}  Qe3 {[%clk 0:00:09]} 46. Rf1 {[%clk 0:00:08]}  e4 {[%clk 0:00:09]} 47. Re1 {[%clk 0:00:07]}  Qf3 {[%clk 0:00:09]} 48. Kg1 {[%clk 0:00:04]}  Qg2# {[%clk 0:00:09]} 0-1


[Site "https://www.chess.com"]

[Event "Titled Tuesday Blitz January 31 Early 2023"]
[White "Movahed, Sina"]
[Black "Bilan, Danila"]
[WhiteFideId "42520835"]
[BlackFideId "24161918"]
[WhiteElo "2340"]
[BlackElo "2303"]
[Result "1/2-1/2"]
[Round "01"]
[TimeControl "180+2"]
[Date "2023.01.31"]
[WhiteClock "0:00:21"]
[BlackClock "0:00:27"]

1. e4 {[%clk 0:03:00]}  c6 {[%clk 0:02:59]} 2. Nf3 {[%clk 0:02:59]}  d5 {[%clk 0:02:58]} 3. Nc3 {[%clk 0:03:00]}  Bg4 {[%clk 0:02:56]} 4. h3 {[%clk 0:03:00]}  Bxf3 {[%clk 0:02:56]} 5. Qxf3 {[%clk 0:02:59]}  e6 {[%clk 0:02:56]} 6. Be2 {[%clk 0:02:58]}  Nd7 {[%clk 0:02:53]} 7. O-O {[%clk 0:02:57]}  Ngf6 {[%clk 0:02:45]} 8. d4 {[%clk 0:02:54]}  dxe4 {[%clk 0:02:41]} 9. Nxe4 {[%clk 0:02:54]}  Be7 {[%clk 0:02:31]} 10. a4 {[%clk 0:02:50]}  O-O {[%clk 0:02:24]} 11. Rd1 {[%clk 0:02:45]}  Rc8 {[%clk 0:02:19]} 12. a5 {[%clk 0:02:43]}  Nxe4 {[%clk 0:02:12]} 13. Qxe4 {[%clk 0:02:43]}  Bg5 {[%clk 0:02:11]} 14. Bd3 {[%clk 0:02:34]}  g6 {[%clk 0:02:05]} 15. f4 {[%clk 0:02:26]}  Be7 {[%clk 0:01:39]} 16. Be3 {[%clk 0:02:21]}  Qc7 {[%clk 0:01:33]} 17. c4 {[%clk 0:02:06]}  Rfd8 {[%clk 0:01:21]} 18. a6 {[%clk 0:01:56]}  b6 {[%clk 0:01:19]} 19. Kh1 {[%clk 0:01:54]}  Nf6 {[%clk 0:01:09]} 20. Qf3 {[%clk 0:01:45]}  c5 {[%clk 0:01:09]} 21. dxc5 {[%clk 0:01:27]}  Bxc5 {[%clk 0:01:07]} 22. Bd2 {[%clk 0:01:27]}  Bd4 {[%clk 0:00:56]} 23. Rab1 {[%clk 0:01:22]}  Rd7 {[%clk 0:00:51]} 24. b3 {[%clk 0:01:06]}  Rcd8 {[%clk 0:00:50]} 25. Be1 {[%clk 0:01:05]}  Bc5 {[%clk 0:00:41]} 26. Bc2 {[%clk 0:00:53]}  Bd4 {[%clk 0:00:38]} 27. Rd2 {[%clk 0:00:48]}  Bc5 {[%clk 0:00:33]} 28. Rbd1 {[%clk 0:00:46]}  Rxd2 {[%clk 0:00:33]} 29. Rxd2 {[%clk 0:00:47]}  Rxd2 {[%clk 0:00:33]} 30. Bxd2 {[%clk 0:00:47]}  Qd6 {[%clk 0:00:33]} 31. Bc3 {[%clk 0:00:43]}  Nh5 {[%clk 0:00:25]} 32. Qa8+ {[%clk 0:00:36]}  Qf8 {[%clk 0:00:26]} 33. Qxf8+ {[%clk 0:00:26]}  Kxf8 {[%clk 0:00:26]} 34. Be5 {[%clk 0:00:20]}  Ng3+ {[%clk 0:00:26]} 35. Kh2 {[%clk 0:00:20]}  Nf1+ {[%clk 0:00:26]} 36. Kh1 {[%clk 0:00:20]}  Ng3+ {[%clk 0:00:26]} 37. Kh2 {[%clk 0:00:20]}  Nf1+ {[%clk 0:00:26]} 38. Kh1 {[%clk 0:00:21]}  Ng3+ {[%clk 0:00:27]} 1/2-1/2


[Site "https://www.chess.com"]

[Event "Titled Tuesday Blitz January 31 Early 2023"]
[White "Mujumdar, Sameer"]
[Black "Kilic, Eray"]
[WhiteFideId "2029707"]
[BlackFideId "44517173"]
[WhiteElo "1992"]
[BlackElo "2414"]
[Result "0-1"]
[Round "01"]
[TimeControl "180+2"]
[Date "2023.01.31"]
[WhiteClock "0:00:23"]
[BlackClock "0:01:15"]

1. d4 {[%clk 0:02:46]}  Nf6 {[%clk 0:02:58]} 2. c4 {[%clk 0:02:45]}  g6 {[%clk 0:02:58]} 3. Nc3 {[%clk 0:02:45]}  d5 {[%clk 0:02:59]} 4. Bg5 {[%clk 0:02:39]}  Ne4 {[%clk 0:02:55]} 5. Bf4 {[%clk 0:02:39]}  Nxc3 {[%clk 0:02:54]} 6. bxc3 {[%clk 0:02:40]}  dxc4 {[%clk 0:02:53]} 7. e3 {[%clk 0:02:39]}  Be6 {[%clk 0:02:51]} 8. Qb1 {[%clk 0:02:35]}  Qc8 {[%clk 0:02:47]} 9. Nf3 {[%clk 0:02:29]}  Bg7 {[%clk 0:02:46]} 10. h4 {[%clk 0:02:25]}  O-O {[%clk 0:02:38]} 11. h5 {[%clk 0:02:25]}  c5 {[%clk 0:02:07]} 12. hxg6 {[%clk 0:01:40]}  hxg6 {[%clk 0:02:08]} 13. Ng5 {[%clk 0:01:24]}  Nc6 {[%clk 0:02:04]} 14. Be2 {[%clk 0:01:03]}  cxd4 {[%clk 0:01:45]} 15. exd4 {[%clk 0:00:56]}  Bf5 {[%clk 0:01:43]} 16. Qc1 {[%clk 0:00:54]}  e5 {[%clk 0:01:42]} 17. dxe5 {[%clk 0:00:48]}  Re8 {[%clk 0:01:28]} 18. O-O {[%clk 0:00:35]}  Nxe5 {[%clk 0:01:27]} 19. Re1 {[%clk 0:00:34]}  Nd3 {[%clk 0:01:24]} 20. Bxd3 {[%clk 0:00:31]}  cxd3 {[%clk 0:01:25]} 21. Qa3 {[%clk 0:00:29]}  Qxc3 {[%clk 0:01:18]} 22. Qxc3 {[%clk 0:00:22]}  Bxc3 {[%clk 0:01:18]} 23. Rxe8+ {[%clk 0:00:22]}  Rxe8 {[%clk 0:01:18]} 24. Rc1 {[%clk 0:00:23]}  d2 {[%clk 0:01:15]} 0-1


[Site "https://www.chess.com"]

[Event "Titled Tuesday Blitz January 31 Early 2023"]
[White "Donskov, Anatoly"]
[Black "Rakhmatullaev, Almas"]
[WhiteFideId "24143413"]
[BlackFideId "14205793"]
[WhiteElo "2279"]
[BlackElo "2275"]
[Result "0-1"]
[Round "01"]
[TimeControl "180+2"]
[Date "2023.01.31"]
[WhiteClock "0:00:01"]
[BlackClock "0:00:07"]

1. e4 {[%clk 0:03:00]}  e5 {[%clk 0:02:59]} 2. Nf3 {[%clk 0:03:00]}  Nf6 {[%clk 0:03:00]} 3. d4 {[%clk 0:02:59]}  Nxe4 {[%clk 0:02:59]} 4. Bd3 {[%clk 0:02:59]}  d5 {[%clk 0:02:58]} 5. Nxe5 {[%clk 0:02:59]}  Nd7 {[%clk 0:02:55]} 6. Nxd7 {[%clk 0:02:59]}  Bxd7 {[%clk 0:02:54]} 7. O-O {[%clk 0:03:00]}  Bd6 {[%clk 0:02:50]} 8. c4 {[%clk 0:03:00]}  c6 {[%clk 0:02:49]} 9. Nc3 {[%clk 0:03:00]}  Nxc3 {[%clk 0:02:44]} 10. bxc3 {[%clk 0:03:01]}  O-O {[%clk 0:02:36]} 11. Qh5 {[%clk 0:02:37]}  g6 {[%clk 0:02:33]} 12. Qh6 {[%clk 0:02:37]}  Re8 {[%clk 0:02:28]} 13. Bg5 {[%clk 0:02:25]}  Qa5 {[%clk 0:02:18]} 14. Bd2 {[%clk 0:02:00]}  Qa4 {[%clk 0:01:55]} 15. c5 {[%clk 0:01:50]}  Bf8 {[%clk 0:01:54]} 16. Qf4 {[%clk 0:01:47]}  b6 {[%clk 0:01:49]} 17. cxb6 {[%clk 0:00:59]}  axb6 {[%clk 0:01:48]} 18. Rfb1 {[%clk 0:01:00]}  b5 {[%clk 0:01:41]} 19. h4 {[%clk 0:00:55]}  Qa3 {[%clk 0:01:30]} 20. Qg3 {[%clk 0:00:20]}  Bd6 {[%clk 0:01:15]} 21. Qf3 {[%clk 0:00:17]}  h5 {[%clk 0:01:06]} 22. g3 {[%clk 0:00:17]}  Bg4 {[%clk 0:01:01]} 23. Qf6 {[%clk 0:00:17]}  Re6 {[%clk 0:00:45]} 24. Qg5 {[%clk 0:00:17]}  Rae8 {[%clk 0:00:29]} 25. Kg2 {[%clk 0:00:16]}  Be7 {[%clk 0:00:19]} 26. Qf4 {[%clk 0:00:16]}  Rf6 {[%clk 0:00:18]} 27. Qe5 {[%clk 0:00:12]}  Bf3+ {[%clk 0:00:13]} 28. Kg1 {[%clk 0:00:13]}  Re6 {[%clk 0:00:10]} 29. Qf4 {[%clk 0:00:13]}  Be4 {[%clk 0:00:11]} 30. Bxe4 {[%clk 0:00:09]}  Rxe4 {[%clk 0:00:11]} 31. Qf3 {[%clk 0:00:08]}  Bd6 {[%clk 0:00:10]} 32. Kg2 {[%clk 0:00:07]}  Re2 {[%clk 0:00:10]} 33. Rd1 {[%clk 0:00:06]}  Qb2 {[%clk 0:00:08]} 34. Bg5 {[%clk 0:00:03]}  Qc2 {[%clk 0:00:07]} 35. Bh6 {[%clk 0:00:03]}  Qf5 {[%clk 0:00:05]} 36. Qxf5 {[%clk 0:00:02]}  gxf5 {[%clk 0:00:06]} 37. Be3 {[%clk 0:00:03]}  R8xe3 {[%clk 0:00:06]} 38. Kf1 {[%clk 0:00:03]}  Re8 {[%clk 0:00:05]} 39. a4 {[%clk 0:00:04]}  R2e6 {[%clk 0:00:06]} 40. axb5 {[%clk 0:00:04]}  cxb5 {[%clk 0:00:07]} 41. Rdb1 {[%clk 0:00:05]}  Rc8 {[%clk 0:00:07]} 42. Rxb5 {[%clk 0:00:04]}  Rxc3 {[%clk 0:00:07]} 43. Rxd5 {[%clk 0:00:04]}  Rf6 {[%clk 0:00:05]} 44. Ra6 {[%clk 0:00:04]}  Be7 {[%clk 0:00:05]} 45. Rxf6 {[%clk 0:00:04]}  Bxf6 {[%clk 0:00:06]} 46. Rxf5 {[%clk 0:00:05]}  Bxd4 {[%clk 0:00:05]} 47. Rxh5 {[%clk 0:00:05]}  Rc1+ {[%clk 0:00:06]} 48. Kg2 {[%clk 0:00:05]}  Rc2 {[%clk 0:00:06]} 49. Rf5 {[%clk 0:00:06]}  Kg7 {[%clk 0:00:06]} 50. Rf4 {[%clk 0:00:05]}  Be5 {[%clk 0:00:06]} 51. Rf5 {[%clk 0:00:05]}  f6 {[%clk 0:00:07]} 52. g4 {[%clk 0:00:05]}  Rc4 {[%clk 0:00:06]} 53. Kf3 {[%clk 0:00:04]}  Kg6 {[%clk 0:00:06]} 54. h5+ {[%clk 0:00:04]}  Kf7 {[%clk 0:00:07]} 55. g5 {[%clk 0:00:04]}  Ke6 {[%clk 0:00:07]} 56. Rxe5+ {[%clk 0:00:01]}  fxe5 {[%clk 0:00:07]} 0-1


[Site "https://www.chess.com"]

[Event "Titled Tuesday Blitz January 31 Early 2023"]
[White "Myshakov, Fyodor"]
[Black "Borges Feria, Yasel"]
[WhiteFideId "14111284"]
[BlackFideId "3504921"]
[WhiteElo "2292"]
[BlackElo "2439"]
[Result "0-1"]
[Round "01"]
[TimeControl "180+2"]
[Date "2023.01.31"]
[WhiteClock "0:00:48"]
[BlackClock "0:00:49"]

1. c4 {[%clk 0:02:55]}  e6 {[%clk 0:02:58]} 2. Nc3 {[%clk 0:02:55]}  d5 {[%clk 0:02:57]} 3. cxd5 {[%clk 0:02:56]}  exd5 {[%clk 0:02:57]} 4. d4 {[%clk 0:02:57]}  c6 {[%clk 0:02:57]} 5. Nf3 {[%clk 0:02:58]}  a6 {[%clk 0:02:56]} 6. Qc2 {[%clk 0:02:58]}  Be6 {[%clk 0:02:54]} 7. Bf4 {[%clk 0:02:57]}  Nf6 {[%clk 0:02:53]} 8. e3 {[%clk 0:02:57]}  Nbd7 {[%clk 0:02:53]} 9. Bd3 {[%clk 0:02:58]}  h6 {[%clk 0:02:53]} 10. O-O {[%clk 0:02:58]}  Be7 {[%clk 0:02:53]} 11. Ne5 {[%clk 0:02:58]}  O-O {[%clk 0:02:52]} 12. Nxd7 {[%clk 0:02:58]}  Qxd7 {[%clk 0:02:53]} 13. Be5 {[%clk 0:02:58]}  Rac8 {[%clk 0:02:47]} 14. Rae1 {[%clk 0:02:57]}  Rfe8 {[%clk 0:02:47]} 15. f4 {[%clk 0:02:57]}  Qd8 {[%clk 0:02:38]} 16. f5 {[%clk 0:02:54]}  Bd7 {[%clk 0:02:38]} 17. Qf2 {[%clk 0:02:49]}  Ng4 {[%clk 0:02:33]} 18. Qg3 {[%clk 0:02:48]}  Nxe5 {[%clk 0:02:34]} 19. dxe5 {[%clk 0:02:49]}  Bh4 {[%clk 0:02:34]} 20. Qg4 {[%clk 0:02:46]}  Bxe1 {[%clk 0:02:33]} 21. e6 {[%clk 0:02:38]}  Bxc3 {[%clk 0:01:37]} 22. bxc3 {[%clk 0:01:56]}  Rxe6 {[%clk 0:01:16]} 23. fxe6 {[%clk 0:01:50]}  Bxe6 {[%clk 0:01:17]} 24. Qg3 {[%clk 0:01:32]}  Qg5 {[%clk 0:01:15]} 25. Qf3 {[%clk 0:01:29]}  Re8 {[%clk 0:01:11]} 26. g3 {[%clk 0:01:27]}  Qe5 {[%clk 0:01:06]} 27. e4 {[%clk 0:01:15]}  dxe4 {[%clk 0:01:05]} 28. Bxe4 {[%clk 0:01:11]}  Re7 {[%clk 0:00:51]} 29. Re1 {[%clk 0:01:04]}  f5 {[%clk 0:00:49]} 30. Bxf5 {[%clk 0:00:48]}  Qxe1+ {[%clk 0:00:49]} 0-1


[Site "https://www.chess.com"]

[Event "Titled Tuesday Blitz January 31 Early 2023"]
[White "Guliev, Logman"]
[Black "Boros, Denes"]
[WhiteFideId "13400061"]
[BlackFideId "722340"]
[WhiteElo "2250"]
[BlackElo "2406"]
[Result "0-1"]
[Round "01"]
[TimeControl "180+2"]
[Date "2023.01.31"]
[WhiteClock "0:00:02"]
[BlackClock "0:00:29"]

1. e4 {[%clk 0:02:59]}  g6 {[%clk 0:03:00]} 2. d4 {[%clk 0:02:58]}  d5 {[%clk 0:03:01]} 3. e5 {[%clk 0:02:56]}  c5 {[%clk 0:03:00]} 4. Nf3 {[%clk 0:02:55]}  cxd4 {[%clk 0:02:57]} 5. Nxd4 {[%clk 0:02:54]}  Nc6 {[%clk 0:02:57]} 6. Nxc6 {[%clk 0:02:48]}  bxc6 {[%clk 0:02:58]} 7. Bd3 {[%clk 0:02:48]}  Bg7 {[%clk 0:02:56]} 8. Qe2 {[%clk 0:02:48]}  Qc7 {[%clk 0:02:49]} 9. Bf4 {[%clk 0:02:47]}  e6 {[%clk 0:02:34]} 10. O-O {[%clk 0:02:42]}  Ne7 {[%clk 0:02:34]} 11. c4 {[%clk 0:02:37]}  Rb8 {[%clk 0:02:26]} 12. Nc3 {[%clk 0:02:31]}  O-O {[%clk 0:02:21]} 13. Rac1 {[%clk 0:02:29]}  c5 {[%clk 0:02:16]} 14. b3 {[%clk 0:02:12]}  d4 {[%clk 0:02:09]} 15. Ne4 {[%clk 0:01:59]}  Nc6 {[%clk 0:02:09]} 16. Nxc5 {[%clk 0:01:43]}  Bxe5 {[%clk 0:02:03]} 17. Bxe5 {[%clk 0:01:39]}  Nxe5 {[%clk 0:02:04]} 18. Ne4 {[%clk 0:01:21]}  f5 {[%clk 0:02:04]} 19. Nd2 {[%clk 0:01:07]}  Ng4 {[%clk 0:01:38]} 20. f4 {[%clk 0:00:49]}  Re8 {[%clk 0:01:32]} 21. c5 {[%clk 0:00:40]}  e5 {[%clk 0:01:32]} 22. Bc4+ {[%clk 0:00:32]}  Kg7 {[%clk 0:01:30]} 23. fxe5 {[%clk 0:00:18]}  Rxe5 {[%clk 0:01:26]} 24. Qd3 {[%clk 0:00:19]}  Bb7 {[%clk 0:00:53]} 25. Nf3 {[%clk 0:00:13]}  Bxf3 {[%clk 0:00:46]} 26. Rxf3 {[%clk 0:00:12]}  Re4 {[%clk 0:00:41]} 27. g3 {[%clk 0:00:11]}  Ne5 {[%clk 0:00:40]} 28. Qf1 {[%clk 0:00:08]}  Nxf3+ {[%clk 0:00:38]} 29. Qxf3 {[%clk 0:00:08]}  Qxc5 {[%clk 0:00:38]} 30. Kg2 {[%clk 0:00:08]}  Rbe8 {[%clk 0:00:35]} 31. Kh3 {[%clk 0:00:08]}  R8e7 {[%clk 0:00:32]} 32. Qd3 {[%clk 0:00:02]}  Qe5 {[%clk 0:00:29]} 0-1


[Site "https://www.chess.com"]

[Event "Titled Tuesday Blitz January 31 Early 2023"]
[White "Bartel, Mateusz"]
[Black "Vagman, Roy"]
[WhiteFideId "1112635"]
[BlackFideId "2828995"]
[WhiteElo "2609"]
[BlackElo "2273"]
[Result "1-0"]
[Round "01"]
[TimeControl "180+2"]
[Date "2023.01.31"]
[WhiteClock "0:00:14"]
[BlackClock "0:00:04"]

1. Nf3 {[%clk 0:02:59]}  d5 {[%clk 0:02:58]} 2. e3 {[%clk 0:02:57]}  g6 {[%clk 0:02:58]} 3. c4 {[%clk 0:02:56]}  c6 {[%clk 0:02:57]} 4. d4 {[%clk 0:02:54]}  Bg7 {[%clk 0:02:56]} 5. Nc3 {[%clk 0:02:54]}  Nf6 {[%clk 0:02:55]} 6. h3 {[%clk 0:02:53]}  O-O {[%clk 0:02:55]} 7. Bd2 {[%clk 0:02:54]}  a6 {[%clk 0:02:54]} 8. Rc1 {[%clk 0:02:52]}  dxc4 {[%clk 0:02:53]} 9. Bxc4 {[%clk 0:02:51]}  b5 {[%clk 0:02:51]} 10. Bb3 {[%clk 0:02:50]}  Bb7 {[%clk 0:02:50]} 11. O-O {[%clk 0:02:39]}  Nbd7 {[%clk 0:02:39]} 12. a4 {[%clk 0:02:29]}  Qb6 {[%clk 0:02:27]} 13. Ne2 {[%clk 0:01:51]}  c5 {[%clk 0:02:08]} 14. a5 {[%clk 0:01:51]}  Qa7 {[%clk 0:02:07]} 15. Ng3 {[%clk 0:01:49]}  e6 {[%clk 0:01:36]} 16. Ba2 {[%clk 0:01:43]}  Rac8 {[%clk 0:01:31]} 17. b4 {[%clk 0:01:41]}  Bxf3 {[%clk 0:01:11]} 18. Qxf3 {[%clk 0:01:40]}  cxd4 {[%clk 0:01:10]} 19. Qf4 {[%clk 0:01:31]}  e5 {[%clk 0:00:46]} 20. Qf3 {[%clk 0:01:31]}  Rfe8 {[%clk 0:00:45]} 21. Ne4 {[%clk 0:01:27]}  Rxc1 {[%clk 0:00:41]} 22. Rxc1 {[%clk 0:01:27]}  Rf8 {[%clk 0:00:39]} 23. Nd6 {[%clk 0:01:22]}  dxe3 {[%clk 0:00:32]} 24. Bxe3 {[%clk 0:01:21]}  Qb8 {[%clk 0:00:33]} 25. Qc6 {[%clk 0:01:19]}  e4 {[%clk 0:00:28]} 26. Qxa6 {[%clk 0:01:17]}  Ne5 {[%clk 0:00:26]} 27. Rc8 {[%clk 0:01:14]}  Rxc8 {[%clk 0:00:26]} 28. Qxc8+ {[%clk 0:01:15]}  Qxc8 {[%clk 0:00:26]} 29. Nxc8 {[%clk 0:01:16]}  Nc6 {[%clk 0:00:25]} 30. a6 {[%clk 0:01:14]}  Bf8 {[%clk 0:00:20]} 31. Na7 {[%clk 0:01:09]}  Nxb4 {[%clk 0:00:18]} 32. Nxb5 {[%clk 0:00:57]}  Nxa6 {[%clk 0:00:18]} 33. Bd4 {[%clk 0:00:56]}  Be7 {[%clk 0:00:17]} 34. g4 {[%clk 0:00:52]}  Nb4 {[%clk 0:00:18]} 35. Bb3 {[%clk 0:00:52]}  Nc6 {[%clk 0:00:18]} 36. Bc3 {[%clk 0:00:52]}  h5 {[%clk 0:00:17]} 37. g5 {[%clk 0:00:52]}  Nd7 {[%clk 0:00:16]} 38. h4 {[%clk 0:00:51]}  Nce5 {[%clk 0:00:15]} 39. Kg2 {[%clk 0:00:47]}  Nf3 {[%clk 0:00:16]} 40. Kg3 {[%clk 0:00:46]}  Nc5 {[%clk 0:00:16]} 41. Bd5 {[%clk 0:00:44]}  Kf8 {[%clk 0:00:13]} 42. Bb4 {[%clk 0:00:35]}  Nd7 {[%clk 0:00:07]} 43. Bxe7+ {[%clk 0:00:33]}  Kxe7 {[%clk 0:00:08]} 44. Bxe4 {[%clk 0:00:34]}  Nfe5 {[%clk 0:00:08]} 45. f4 {[%clk 0:00:33]}  Ng4 {[%clk 0:00:08]} 46. Nc3 {[%clk 0:00:28]}  Nc5 {[%clk 0:00:08]} 47. Nd5+ {[%clk 0:00:26]}  Kf8 {[%clk 0:00:08]} 48. Bf3 {[%clk 0:00:27]}  Kg7 {[%clk 0:00:04]} 49. Bxg4 {[%clk 0:00:25]}  hxg4 {[%clk 0:00:05]} 50. Kxg4 {[%clk 0:00:26]}  Ne4 {[%clk 0:00:05]} 51. f5 {[%clk 0:00:24]}  gxf5+ {[%clk 0:00:05]} 52. Kxf5 {[%clk 0:00:25]}  Ng3+ {[%clk 0:00:06]} 53. Kf4 {[%clk 0:00:23]}  Ne2+ {[%clk 0:00:07]} 54. Kg4 {[%clk 0:00:23]}  Nd4 {[%clk 0:00:07]} 55. Nf6 {[%clk 0:00:21]}  Ne6 {[%clk 0:00:07]} 56. Nh5+ {[%clk 0:00:20]}  Kg8 {[%clk 0:00:07]} 57. Nf4 {[%clk 0:00:20]}  Nd8 {[%clk 0:00:06]} 58. Kf5 {[%clk 0:00:20]}  Nc6 {[%clk 0:00:07]} 59. h5 {[%clk 0:00:20]}  Nd4+ {[%clk 0:00:06]} 60. Kf6 {[%clk 0:00:20]}  Nf3 {[%clk 0:00:06]} 61. Nd5 {[%clk 0:00:19]}  Kh7 {[%clk 0:00:05]} 62. Nc3 {[%clk 0:00:13]}  Kg8 {[%clk 0:00:05]} 63. Ne4 {[%clk 0:00:14]}  Kf8 {[%clk 0:00:04]} 64. Nd6 {[%clk 0:00:13]}  Nh2 {[%clk 0:00:02]} 65. Nxf7 {[%clk 0:00:12]}  Ng4+ {[%clk 0:00:03]} 66. Kg6 {[%clk 0:00:13]}  Kg8 {[%clk 0:00:03]} 67. Nh6+ {[%clk 0:00:13]}  Nxh6 {[%clk 0:00:04]} 68. Kxh6 {[%clk 0:00:14]} 1-0


[Site "https://www.chess.com"]